[Event "*** Titled Tuesday Blitz"]
[Site "Chess.com"]
[Date "2021.04.06"]
[Round "8"]
[White "Guzman70"]
[Black "Slovak_fighter2000"]
[Result "1/2-1/2"]
[WhiteElo "2357"]
[BlackElo "2483"]
[TimeControl "180+1"]
[EndTime "11:30:11 PDT"]
[Termination "Game drawn - insufficient material"]

1. d4 {[%clk 0:03:00.9]} 1... Nf6 {[%clk 0:02:58.5]} 2. Bf4 {[%clk 0:03:00.3]}
2... d5 {[%clk 0:02:56.7]} 3. e3 {[%clk 0:02:59.6]} 3... c5 {[%clk 0:02:56.8]}
4. Nf3 {[%clk 0:02:58]} 4... Nc6 {[%clk 0:02:51.1]} 5. dxc5 {[%clk 0:02:48.9]}
5... e6 {[%clk 0:02:48.5]} 6. c3 {[%clk 0:02:42]} 6... Bxc5 {[%clk 0:02:46.7]}
7. b4 {[%clk 0:02:40.6]} 7... Bd6 {[%clk 0:02:44.5]} 8. Bg5 {[%clk 0:02:35.8]}
8... O-O {[%clk 0:02:41.7]} 9. Bd3 {[%clk 0:02:31.2]} 9... h6 {[%clk 0:02:39.2]}
10. Bh4 {[%clk 0:02:30.7]} 10... e5 {[%clk 0:02:23.3]} 11. Bc2 {[%clk 0:02:29]}
11... b6 {[%clk 0:02:10.2]} 12. O-O {[%clk 0:02:27]} 12... Bb7 {[%clk
0:02:06.7]} 13. Nbd2 {[%clk 0:02:09.5]} 13... Be7 {[%clk 0:02:07.6]} 14. e4
{[%clk 0:01:53.8]} 14... dxe4 {[%clk 0:02:03.3]} 15. Nxe4 {[%clk 0:01:53.9]}
15... Nxe4 {[%clk 0:02:01.9]} 16. Qxd8 {[%clk 0:01:47.6]} 16... Rfxd8 {[%clk
0:01:41.8]} 17. Bxe4 {[%clk 0:01:44.8]} 17... Bxh4 {[%clk 0:01:39.4]} 18. Nxh4
{[%clk 0:01:45.7]} 18... g6 {[%clk 0:01:28.9]} 19. Rfd1 {[%clk 0:01:37.9]} 19...
Kg7 {[%clk 0:01:25.9]} 20. Nf3 {[%clk 0:01:33.9]} 20... f6 {[%clk 0:01:14.6]}
21. Kf1 {[%clk 0:01:30.4]} 21... Rxd1+ {[%clk 0:01:05.2]} 22. Rxd1 {[%clk
0:01:31.3]} 22... Rd8 {[%clk 0:01:04.2]} 23. Rxd8 {[%clk 0:01:29.7]} 23... Nxd8
{[%clk 0:01:05.1]} 24. Bxb7 {[%clk 0:01:29.8]} 24... Nxb7 {[%clk 0:01:06]} 25.
Nd2 {[%clk 0:01:23.9]} 25... Kf7 {[%clk 0:01:00.5]} 26. Ke2 {[%clk 0:01:18.1]}
26... Ke6 {[%clk 0:00:59.1]} 27. Kd3 {[%clk 0:01:17.6]} 27... f5 {[%clk
0:00:53.6]} 28. f3 {[%clk 0:01:17.5]} 28... Kd5 {[%clk 0:00:49]} 29. c4+ {[%clk
0:01:16.4]} 29... Kc6 {[%clk 0:00:48.9]} 30. Nb3 {[%clk 0:01:12.9]} 30... a5
{[%clk 0:00:47.8]} 31. a3 {[%clk 0:01:10.8]} 31... axb4 {[%clk 0:00:46.1]} 32.
axb4 {[%clk 0:01:10.6]} 32... Nd6 {[%clk 0:00:46.1]} 33. Nd2 {[%clk 0:00:50.1]}
33... h5 {[%clk 0:00:41.8]} 34. h4 {[%clk 0:00:49.6]} 34... Ne8 {[%clk
0:00:38.9]} 35. b5+ {[%clk 0:00:40.3]} 35... Kd6 {[%clk 0:00:36.2]} 36. Kc3
{[%clk 0:00:32.6]} 36... Nc7 {[%clk 0:00:36]} 37. Nb3 {[%clk 0:00:31.4]} 37...
Ne6 {[%clk 0:00:34.9]} 38. Kb4 {[%clk 0:00:31.3]} 38... Nf4 {[%clk 0:00:33.1]}
39. c5+ {[%clk 0:00:21.9]} 39... bxc5+ {[%clk 0:00:34]} 40. Nxc5 {[%clk
0:00:22.1]} 40... Nxg2 {[%clk 0:00:34.2]} 41. Ka5 {[%clk 0:00:13.8]} 41... Ne3
{[%clk 0:00:19.8]} 42. Nb7+ {[%clk 0:00:09.3]} 42... Kc7 {[%clk 0:00:17.9]} 43.
Ka6 {[%clk 0:00:09]} 43... Nd5 {[%clk 0:00:15.3]} 44. Nc5 {[%clk 0:00:08.3]}
44... Kd6 {[%clk 0:00:13.2]} 45. Nb7+ {[%clk 0:00:06.8]} 45... Ke7 {[%clk
0:00:11.8]} 46. Nc5 {[%clk 0:00:05.4]} 46... Kd6 {[%clk 0:00:08.7]} 47. Nb7+
{[%clk 0:00:05.2]} 47... Kc7 {[%clk 0:00:09.3]} 48. Nc5 {[%clk 0:00:05.4]} 48...
Kb8 {[%clk 0:00:06.5]} 49. Nd7+ {[%clk 0:00:04.9]} 49... Kc7 {[%clk 0:00:06.9]}
50. Nxe5 {[%clk 0:00:05.8]} 50... Nb4+ {[%clk 0:00:05.8]} 51. Ka5 {[%clk
0:00:05.6]} 51... Nd5 {[%clk 0:00:05.8]} 52. Nxg6 {[%clk 0:00:05.6]} 52... Kd6
{[%clk 0:00:06.3]} 53. b6 {[%clk 0:00:05]} 53... Kc6 {[%clk 0:00:06.6]} 54. Ka6
{[%clk 0:00:02.7]} 54... Nxb6 {[%clk 0:00:06.5]} 55. Ne7+ {[%clk 0:00:03.2]}
55... Kc7 {[%clk 0:00:05.4]} 56. Nxf5 {[%clk 0:00:03.3]} 56... Nc4 {[%clk
0:00:05.5]} 57. Ng7 {[%clk 0:00:03.5]} 57... Ne5 {[%clk 0:00:05.5]} 58. Nxh5
{[%clk 0:00:03.5]} 58... Nxf3 {[%clk 0:00:05.7]} 59. Nf6 {[%clk 0:00:04.2]}
59... Nxh4 {[%clk 0:00:06.2]} 1/2-1/2

[Event "*** Titled Tuesday Blitz"]
[Site "Chess.com"]
[Date "2021.04.06"]
[Round "8"]
[White "DarZay"]
[Black "SaqoChess_Twitch"]
[Result "1-0"]
[WhiteElo "2229"]
[BlackElo "2443"]
[TimeControl "180+1"]
[EndTime "11:30:14 PDT"]
[Termination "DarZay won by checkmate"]

1. e4 {[%clk 0:03:00.9]} 1... c5 {[%clk 0:02:59.7]} 2. Nf3 {[%clk 0:03:00.7]}
2... d6 {[%clk 0:03:00.2]} 3. d4 {[%clk 0:03:00.6]} 3... cxd4 {[%clk 0:03:01.1]}
4. Nxd4 {[%clk 0:03:00.5]} 4... Nf6 {[%clk 0:02:59.7]} 5. Nc3 {[%clk 0:03:00.4]}
5... a6 {[%clk 0:02:55.9]} 6. f3 {[%clk 0:02:54]} 6... e6 {[%clk 0:02:47.1]} 7.
Be3 {[%clk 0:02:53.9]} 7... Be7 {[%clk 0:02:42.9]} 8. Qd2 {[%clk 0:02:53.9]}
8... h5 {[%clk 0:02:38.3]} 9. O-O-O {[%clk 0:02:52.9]} 9... b5 {[%clk
0:02:34.2]} 10. a3 {[%clk 0:02:51.6]} 10... Bb7 {[%clk 0:02:27]} 11. Kb1 {[%clk
0:02:48.7]} 11... Nbd7 {[%clk 0:02:19.6]} 12. g3 {[%clk 0:02:42.7]} 12... Rc8
{[%clk 0:02:13.5]} 13. Bg2 {[%clk 0:02:42.4]} 13... Ne5 {[%clk 0:02:09]} 14. f4
{[%clk 0:02:36.2]} 14... Nc4 {[%clk 0:02:08.7]} 15. Qd3 {[%clk 0:02:36]} 15...
Nxe3 {[%clk 0:02:08.1]} 16. Qxe3 {[%clk 0:02:35.7]} 16... Ng4 {[%clk 0:02:09]}
17. Qe2 {[%clk 0:02:30.3]} 17... Rxc3 {[%clk 0:02:08.5]} 18. bxc3 {[%clk
0:02:28.8]} 18... Qa5 {[%clk 0:02:09.4]} 19. e5 {[%clk 0:02:15.6]} 19... Bxg2
{[%clk 0:02:05.4]} 20. Qxg2 {[%clk 0:02:14.3]} 20... O-O {[%clk 0:02:04.8]} 21.
Nc6 {[%clk 0:02:12.8]} 21... Qc7 {[%clk 0:01:56.2]} 22. Nxe7+ {[%clk 0:02:12.9]}
22... Qxe7 {[%clk 0:01:57.1]} 23. Rxd6 {[%clk 0:02:10.6]} 23... Ne3 {[%clk
0:01:54.8]} 24. Qe4 {[%clk 0:02:06.3]} 24... Nc4 {[%clk 0:01:55.4]} 25. Rhd1
{[%clk 0:01:50.3]} 25... Nxa3+ {[%clk 0:01:51.3]} 26. Ka2 {[%clk 0:01:45.7]}
26... Nc4 {[%clk 0:01:52.2]} 27. Qc6 {[%clk 0:01:34.4]} 27... Nxd6 {[%clk
0:01:47.7]} 28. exd6 {[%clk 0:01:31.6]} 28... Qa7 {[%clk 0:01:44.6]} 29. d7
{[%clk 0:01:29.9]} 29... Rd8 {[%clk 0:01:42.9]} 30. Rd6 {[%clk 0:01:25.2]} 30...
Qf2 {[%clk 0:01:40.3]} 31. Kb3 {[%clk 0:01:19.2]} 31... Kf8 {[%clk 0:01:34.5]}
32. Rd4 {[%clk 0:01:02.2]} 32... Qf1 {[%clk 0:01:08.1]} 33. Kb2 {[%clk
0:00:54.8]} 33... b4 {[%clk 0:00:52.4]} 34. Qd6+ {[%clk 0:00:29.3]} 34... Kg8
{[%clk 0:00:52.1]} 35. Qxb4 {[%clk 0:00:28.9]} 35... Qg2 {[%clk 0:00:38.5]} 36.
Qb6 {[%clk 0:00:21.5]} 36... Qa8 {[%clk 0:00:38.9]} 37. c4 {[%clk 0:00:18.9]}
37... Kf8 {[%clk 0:00:38.7]} 38. c5 {[%clk 0:00:16.8]} 38... Ke7 {[%clk
0:00:37.4]} 39. Qd6+ {[%clk 0:00:16.9]} 39... Kf6 {[%clk 0:00:37.9]} 40. Qe5+
{[%clk 0:00:16.3]} 40... Ke7 {[%clk 0:00:38.5]} 41. Qxg7 {[%clk 0:00:15.6]}
41... Rb8+ {[%clk 0:00:38.7]} 42. Kc3 {[%clk 0:00:14.6]} 42... Qf3+ {[%clk
0:00:38.7]} 43. Rd3 {[%clk 0:00:14.3]} 43... Qc6 {[%clk 0:00:36.8]} 44. Qg5+
{[%clk 0:00:13.7]} 44... f6 {[%clk 0:00:32.6]} 45. d8=Q+ {[%clk 0:00:09.6]}
45... Rxd8 {[%clk 0:00:29.3]} 46. Qg7+ {[%clk 0:00:09.7]} 46... Ke8 {[%clk
0:00:29.9]} 47. Qg8+ {[%clk 0:00:10.1]} 47... Ke7 {[%clk 0:00:30.5]} 48. Qxd8+
{[%clk 0:00:10.1]} 48... Kf7 {[%clk 0:00:31.2]} 49. Rd7+ {[%clk 0:00:10.1]}
49... Kg6 {[%clk 0:00:30.9]} 50. Qg8+ {[%clk 0:00:09.3]} 50... Kf5 {[%clk
0:00:31]} 51. Qh7+ {[%clk 0:00:09.4]} 51... Kg4 {[%clk 0:00:31.4]} 52. Rg7+
{[%clk 0:00:09.5]} 52... Kf3 {[%clk 0:00:29.1]} 53. Qxh5+ {[%clk 0:00:09.5]}
53... Kg2 {[%clk 0:00:29.1]} 54. Qe2+ {[%clk 0:00:08.9]} 54... Kg1 {[%clk
0:00:29.1]} 55. Rg4 {[%clk 0:00:05.7]} 55... Qxc5+ {[%clk 0:00:28.8]} 56. Kd2
{[%clk 0:00:05.4]} 56... Qd4+ {[%clk 0:00:28.6]} 57. Qd3 {[%clk 0:00:04.9]}
57... Qb4+ {[%clk 0:00:28.9]} 58. c3 {[%clk 0:00:04.8]} 58... Qb2+ {[%clk
0:00:28.7]} 59. Qc2 {[%clk 0:00:05]} 59... Qb6 {[%clk 0:00:29.1]} 60. Qd1+
{[%clk 0:00:04.6]} 60... Kg2 {[%clk 0:00:28.9]} 61. Qe2+ {[%clk 0:00:05]} 61...
Kh1 {[%clk 0:00:27.9]} 62. Qf1+ {[%clk 0:00:04.9]} 62... Kxh2 {[%clk 0:00:28.5]}
63. Rh4+ {[%clk 0:00:03.8]} 63... Kxg3 {[%clk 0:00:29.2]} 64. Rh3+ {[%clk
0:00:04.2]} 64... Kg4 {[%clk 0:00:29.8]} 65. Qf3+ {[%clk 0:00:04.4]} 65... Kf5
{[%clk 0:00:30.3]} 66. Rh5+ {[%clk 0:00:04.7]} 66... Kg6 {[%clk 0:00:31]} 67.
Qg4+ {[%clk 0:00:05.1]} 67... Kf7 {[%clk 0:00:31.7]} 68. Rh7+ {[%clk 0:00:05]}
68... Kf8 {[%clk 0:00:32.1]} 69. Qg7+ {[%clk 0:00:05.1]} 69... Ke8 {[%clk
0:00:32.8]} 70. Qe7# {[%clk 0:00:05.3]} 1-0

[Event "*** Titled Tuesday Blitz"]
[Site "Chess.com"]
[Date "2021.04.06"]
[Round "8"]
[White "Sibelephant"]
[Black "Angry_Twin"]
[Result "1-0"]
[WhiteElo "3122"]
[BlackElo "2896"]
[TimeControl "180+1"]
[EndTime "11:30:18 PDT"]
[Termination "Sibelephant won on time"]

1. Nf3 {[%clk 0:02:59.7]} 1... d5 {[%clk 0:02:59.7]} 2. e3 {[%clk 0:02:58.9]}
2... Nf6 {[%clk 0:02:59.6]} 3. c4 {[%clk 0:02:59.2]} 3... e6 {[%clk 0:02:59.8]}
4. Nc3 {[%clk 0:02:59.6]} 4... b6 {[%clk 0:02:59.5]} 5. b3 {[%clk 0:02:52.8]}
5... Bb7 {[%clk 0:02:59.7]} 6. Bb2 {[%clk 0:02:53]} 6... Bd6 {[%clk 0:03:00.3]}
7. cxd5 {[%clk 0:02:48.1]} 7... exd5 {[%clk 0:03:00.3]} 8. Nb5 {[%clk
0:02:47.5]} 8... Be7 {[%clk 0:02:59]} 9. Be5 {[%clk 0:02:47.5]} 9... Na6 {[%clk
0:02:57.5]} 10. Nbd4 {[%clk 0:02:47.6]} 10... Nc5 {[%clk 0:02:43.8]} 11. Bb5+
{[%clk 0:02:40]} 11... Kf8 {[%clk 0:02:43.8]} 12. O-O {[%clk 0:02:35.5]} 12...
a6 {[%clk 0:02:36.2]} 13. Bc6 {[%clk 0:02:22.3]} 13... Bxc6 {[%clk 0:02:25.9]}
14. Nxc6 {[%clk 0:02:22.3]} 14... Qd7 {[%clk 0:02:26.5]} 15. Nxe7 {[%clk
0:02:09.4]} 15... Qxe7 {[%clk 0:02:26.7]} 16. Rc1 {[%clk 0:02:09.5]} 16... Ne8
{[%clk 0:02:26.3]} 17. Qc2 {[%clk 0:02:04.2]} 17... f6 {[%clk 0:02:22.1]} 18.
Bg3 {[%clk 0:02:02.5]} 18... Qd7 {[%clk 0:02:10.4]} 19. Nd4 {[%clk 0:01:52.2]}
19... a5 {[%clk 0:02:10.2]} 20. a3 {[%clk 0:01:46.6]} 20... Rc8 {[%clk
0:02:01.2]} 21. b4 {[%clk 0:01:45.5]} 21... axb4 {[%clk 0:02:00.5]} 22. axb4
{[%clk 0:01:45.9]} 22... Ne6 {[%clk 0:01:50.7]} 23. Qf5 {[%clk 0:01:39.7]} 23...
Ke7 {[%clk 0:01:50.9]} 24. Nc6+ {[%clk 0:01:26]} 24... Kf8 {[%clk 0:01:51.2]}
25. b5 {[%clk 0:00:43]} 25... g6 {[%clk 0:01:48.9]} 26. Qf3 {[%clk 0:00:30.1]}
26... Kg7 {[%clk 0:01:46.8]} 27. d4 {[%clk 0:00:29.5]} 27... Ng5 {[%clk
0:01:45]} 28. Qe2 {[%clk 0:00:28.8]} 28... Ne4 {[%clk 0:01:40.7]} 29. Bf4 {[%clk
0:00:29.3]} 29... g5 {[%clk 0:01:38.7]} 30. f3 {[%clk 0:00:28.7]} 30... N4d6
{[%clk 0:01:35.6]} 31. Bg3 {[%clk 0:00:29.1]} 31... h5 {[%clk 0:01:29.7]} 32. e4
{[%clk 0:00:27.8]} 32... h4 {[%clk 0:01:22.9]} 33. Bxd6 {[%clk 0:00:20.3]} 33...
Nxd6 {[%clk 0:01:23.1]} 34. e5 {[%clk 0:00:20.6]} 34... Nc4 {[%clk 0:01:22.8]}
35. f4 {[%clk 0:00:17.6]} 35... fxe5 {[%clk 0:01:07.4]} 36. Nxe5 {[%clk
0:00:14.5]} 36... Qe7 {[%clk 0:01:00.4]} 37. Qd3 {[%clk 0:00:07.9]} 37... Nxe5
{[%clk 0:00:59]} 38. dxe5 {[%clk 0:00:08.5]} 38... Rh6 {[%clk 0:00:44.3]} 39.
Rce1 {[%clk 0:00:05]} 39... gxf4 {[%clk 0:00:34.5]} 40. Rxf4 {[%clk 0:00:05.9]}
40... Rg6 {[%clk 0:00:27.9]} 41. e6 {[%clk 0:00:06.4]} 41... Qg5 {[%clk
0:00:19.7]} 42. Rf7+ {[%clk 0:00:05.3]} 42... Kh6 {[%clk 0:00:20.1]} 43. Qf3
{[%clk 0:00:03.2]} 43... Rcg8 {[%clk 0:00:17.5]} 44. Re2 {[%clk 0:00:02.5]}
44... Qc1+ {[%clk 0:00:17.6]} 45. Qf1 {[%clk 0:00:02.8]} 45... Qxf1+ {[%clk
0:00:07.6]} 46. Kxf1 {[%clk 0:00:03.7]} 46... Re8 {[%clk 0:00:07.9]} 47. Rxc7
{[%clk 0:00:02.7]} 47... Kg5 {[%clk 0:00:08.1]} 48. Rc6 {[%clk 0:00:02.6]} 48...
d4 {[%clk 0:00:08.5]} 49. Rxb6 {[%clk 0:00:02.8]} 49... d3 {[%clk 0:00:08.9]}
50. Rd2 {[%clk 0:00:03.3]} 50... Rf6+ {[%clk 0:00:08.5]} 51. Ke1 {[%clk
0:00:02.3]} 51... Rexe6+ {[%clk 0:00:08.4]} 52. Rxe6 {[%clk 0:00:03.2]} 52...
Rxe6+ {[%clk 0:00:09.3]} 53. Kd1 {[%clk 0:00:03.8]} 53... Rb6 {[%clk 0:00:02]}
54. Rb2 {[%clk 0:00:04.1]} 54... h3 {[%clk 0:00:02.5]} 55. gxh3 {[%clk
0:00:03.2]} 55... Kh4 {[%clk 0:00:02.7]} 56. Kd2 {[%clk 0:00:03.3]} 1-0

[Event "*** Titled Tuesday Blitz"]
[Site "Chess.com"]
[Date "2021.04.06"]
[Round "8"]
[White "vlad_Sid"]
[Black "anon6121824"]
[Result "1/2-1/2"]
[WhiteElo "2617"]
[BlackElo "2779"]
[TimeControl "180+1"]
[EndTime "11:30:23 PDT"]
[Termination "Game drawn by repetition"]

1. c4 {[%clk 0:03:00.9]} 1... e5 {[%clk 0:02:59.7]} 2. g3 {[%clk 0:03:01.2]}
2... Nc6 {[%clk 0:02:59.2]} 3. Bg2 {[%clk 0:03:01.3]} 3... f5 {[%clk 0:02:59.1]}
4. Nc3 {[%clk 0:03:01.8]} 4... Nf6 {[%clk 0:02:58.9]} 5. e3 {[%clk 0:03:01]}
5... Be7 {[%clk 0:02:59.1]} 6. Nge2 {[%clk 0:03:00.2]} 6... O-O {[%clk
0:02:52.2]} 7. O-O {[%clk 0:02:59]} 7... d6 {[%clk 0:02:50.4]} 8. Rb1 {[%clk
0:02:58.1]} 8... Qe8 {[%clk 0:02:48.1]} 9. d3 {[%clk 0:02:57.6]} 9... g5 {[%clk
0:02:41.4]} 10. f4 {[%clk 0:02:56.8]} 10... Qg6 {[%clk 0:02:34.5]} 11. Nd5
{[%clk 0:02:54.3]} 11... Nxd5 {[%clk 0:02:32.2]} 12. cxd5 {[%clk 0:02:53.7]}
12... Nd8 {[%clk 0:02:31.9]} 13. Qc2 {[%clk 0:02:50.1]} 13... c6 {[%clk
0:02:16.5]} 14. b3 {[%clk 0:02:10.3]} 14... cxd5 {[%clk 0:02:14.4]} 15. Bxd5+
{[%clk 0:02:11.2]} 15... Be6 {[%clk 0:02:14]} 16. Bxe6+ {[%clk 0:01:53.1]} 16...
Nxe6 {[%clk 0:02:06.2]} 17. Qc4 {[%clk 0:01:51.1]} 17... Rac8 {[%clk 0:02:04.1]}
18. Qd5 {[%clk 0:01:51]} 18... Rc6 {[%clk 0:01:57.2]} 19. Ba3 {[%clk 0:01:48.9]}
19... Rf7 {[%clk 0:01:48.4]} 20. fxe5 {[%clk 0:01:25.4]} 20... Nc7 {[%clk
0:01:47.1]} 21. Qa5 {[%clk 0:01:08.8]} 21... dxe5 {[%clk 0:01:43.1]} 22. Bxe7
{[%clk 0:00:56.9]} 22... Rxe7 {[%clk 0:01:44]} 23. Rbc1 {[%clk 0:00:56.7]} 23...
b6 {[%clk 0:01:34.7]} 24. Qxa7 {[%clk 0:00:50.7]} 24... f4 {[%clk 0:01:27]} 25.
Rxc6 {[%clk 0:00:44.3]} 25... Qxc6 {[%clk 0:01:27.9]} 26. Rc1 {[%clk 0:00:42.5]}
26... Qd6 {[%clk 0:01:25.2]} 27. Qb8+ {[%clk 0:00:39.8]} 27... Kg7 {[%clk
0:01:22.8]} 28. gxf4 {[%clk 0:00:39.6]} 28... exf4 {[%clk 0:01:21.3]} 29. Nd4
{[%clk 0:00:38.1]} 29... Qe5 {[%clk 0:00:50.2]} 30. Kg2 {[%clk 0:00:25.8]} 30...
Kf7 {[%clk 0:00:29.8]} 31. Re1 {[%clk 0:00:20.5]} 31... Qd5+ {[%clk 0:00:27.6]}
32. Kg1 {[%clk 0:00:20.6]} 32... Ne6 {[%clk 0:00:26.1]} 33. Nxe6 {[%clk
0:00:18.3]} 33... Qxe6 {[%clk 0:00:27]} 34. e4 {[%clk 0:00:18]} 34... Rd7 {[%clk
0:00:24.7]} 35. Qh8 {[%clk 0:00:17.6]} 35... Kg6 {[%clk 0:00:23]} 36. Qc8 {[%clk
0:00:17.2]} 36... f3 {[%clk 0:00:21.1]} 37. Qc2 {[%clk 0:00:16.5]} 37... Qg4+
{[%clk 0:00:19]} 38. Kh1 {[%clk 0:00:16.9]} 38... Rxd3 {[%clk 0:00:17.5]} 39. e5
{[%clk 0:00:15.3]} 39... Kh5 {[%clk 0:00:17.5]} 40. e6 {[%clk 0:00:15.3]} 40...
f2 {[%clk 0:00:15.3]} 41. Qxf2 {[%clk 0:00:13.7]} 41... Rd1 {[%clk 0:00:15.5]}
42. Qf7+ {[%clk 0:00:09]} 42... Kh6 {[%clk 0:00:13.6]} 43. Qf6+ {[%clk
0:00:08.9]} 43... Kh5 {[%clk 0:00:12.3]} 44. Qf7+ {[%clk 0:00:07.9]} 44... Kh6
{[%clk 0:00:11.8]} 45. Rxd1 {[%clk 0:00:06.7]} 45... Qxd1+ {[%clk 0:00:10]} 46.
Kg2 {[%clk 0:00:07.6]} 46... Qe2+ {[%clk 0:00:09]} 47. Kg3 {[%clk 0:00:07.5]}
47... Qe3+ {[%clk 0:00:09.5]} 48. Kg2 {[%clk 0:00:07.4]} 48... Qe4+ {[%clk
0:00:09.4]} 49. Kf2 {[%clk 0:00:06.2]} 49... Qd4+ {[%clk 0:00:08.3]} 50. Ke2
{[%clk 0:00:06.3]} 50... Qe4+ {[%clk 0:00:07.9]} 51. Kd2 {[%clk 0:00:06.3]}
51... Qd4+ {[%clk 0:00:07.3]} 52. Kc2 {[%clk 0:00:06.7]} 52... Qe4+ {[%clk
0:00:07.4]} 53. Kc3 {[%clk 0:00:07.1]} 53... Qe5+ {[%clk 0:00:07.9]} 54. Kc4
{[%clk 0:00:05.1]} 54... Qc5+ {[%clk 0:00:07.4]} 55. Kd3 {[%clk 0:00:05.5]}
55... Qd5+ {[%clk 0:00:07.9]} 56. Kc3 {[%clk 0:00:05]} 56... Qe5+ {[%clk
0:00:07.7]} 57. Kc2 {[%clk 0:00:05.5]} 57... Qe2+ {[%clk 0:00:07.6]} 58. Kb1
{[%clk 0:00:05.7]} 58... Qd1+ {[%clk 0:00:07.6]} 59. Kb2 {[%clk 0:00:06]} 59...
Qe2+ {[%clk 0:00:06.6]} 60. Kc3 {[%clk 0:00:02.4]} 60... Qe5+ {[%clk 0:00:06.3]}
1/2-1/2

[Event "*** Titled Tuesday Blitz"]
[Site "Chess.com"]
[Date "2021.04.06"]
[Round "8"]
[White "Schack-Hugo"]
[Black "Ladislav1969"]
[Result "0-1"]
[WhiteElo "2209"]
[BlackElo "2347"]
[TimeControl "180+1"]
[EndTime "11:30:23 PDT"]
[Termination "Ladislav1969 won on time"]

1. e4 {[%clk 0:03:00.9]} 1... c5 {[%clk 0:03:00]} 2. Nf3 {[%clk 0:02:59.3]} 2...
e6 {[%clk 0:03:00.6]} 3. d4 {[%clk 0:02:59.4]} 3... cxd4 {[%clk 0:03:01.5]} 4.
Nxd4 {[%clk 0:03:00.1]} 4... a6 {[%clk 0:03:02]} 5. Nc3 {[%clk 0:02:56.4]} 5...
b5 {[%clk 0:03:02]} 6. Bd3 {[%clk 0:02:55.3]} 6... Bb7 {[%clk 0:02:58.7]} 7. O-O
{[%clk 0:02:54.6]} 7... Qc7 {[%clk 0:02:58.4]} 8. a3 {[%clk 0:02:43.9]} 8... Nf6
{[%clk 0:02:58]} 9. Qe2 {[%clk 0:02:42.7]} 9... d6 {[%clk 0:02:55.8]} 10. Bg5
{[%clk 0:02:39.2]} 10... Nbd7 {[%clk 0:02:55.1]} 11. Nb3 {[%clk 0:02:25.3]}
11... Be7 {[%clk 0:02:38.7]} 12. f4 {[%clk 0:02:17.2]} 12... O-O {[%clk
0:02:27.2]} 13. f5 {[%clk 0:02:15]} 13... Ne5 {[%clk 0:02:23.9]} 14. Qf2 {[%clk
0:01:46.8]} 14... Nfg4 {[%clk 0:02:14.3]} 15. Qh4 {[%clk 0:01:20.5]} 15... Bxg5
{[%clk 0:01:25.5]} 16. Qxg5 {[%clk 0:01:21.4]} 16... Qb6+ {[%clk 0:01:13.9]} 17.
Kh1 {[%clk 0:01:20.7]} 17... Nf2+ {[%clk 0:00:59.1]} 18. Rxf2 {[%clk 0:01:20.5]}
18... Qxf2 {[%clk 0:00:59.2]} 19. Rf1 {[%clk 0:01:18.2]} 19... f6 {[%clk
0:00:59.6]} 20. Qh5 {[%clk 0:01:06.4]} 20... Qe3 {[%clk 0:00:49.9]} 21. fxe6
{[%clk 0:01:01.7]} 21... Nxd3 {[%clk 0:00:46.9]} 22. cxd3 {[%clk 0:00:58.3]}
22... Qxd3 {[%clk 0:00:46.4]} 23. Rd1 {[%clk 0:00:56]} 23... Qc4 {[%clk
0:00:34.8]} 24. Nd4 {[%clk 0:00:37.3]} 24... Rae8 {[%clk 0:00:31.8]} 25. Nd5
{[%clk 0:00:18.5]} 25... g6 {[%clk 0:00:19.4]} 26. Qf3 {[%clk 0:00:17.8]} 26...
Kg7 {[%clk 0:00:16.2]} 27. h4 {[%clk 0:00:07.8]} 27... f5 {[%clk 0:00:16.5]} 28.
h5 {[%clk 0:00:03.9]} 28... fxe4 {[%clk 0:00:15.8]} 29. h6+ {[%clk 0:00:04.4]}
29... Kxh6 {[%clk 0:00:14.9]} 30. Qe3+ {[%clk 0:00:04]} 30... Kg7 {[%clk
0:00:14]} 31. e7 {[%clk 0:00:01.9]} 31... Rf7 {[%clk 0:00:11.4]} 32. Ne6+ {[%clk
0:00:02.1]} 32... Kg8 {[%clk 0:00:10.7]} 33. Ndc7 {[%clk 0:00:02.1]} 33... Qc2
{[%clk 0:00:09.4]} 34. Rxd6 {[%clk 0:00:01.3]} 34... Qb1+ {[%clk 0:00:08.2]} 35.
Kh2 {[%clk 0:00:01.3]} 35... Qxb2 {[%clk 0:00:06.5]} 36. Nxe8 {[%clk 0:00:01.2]}
36... Qe5+ {[%clk 0:00:06.7]} 37. Qf4 {[%clk 0:00:01.4]} 37... Rxf4 {[%clk
0:00:05.8]} 38. Nxf4 {[%clk 0:00:02.3]} 38... Qxf4+ {[%clk 0:00:05.8]} 39. g3
{[%clk 0:00:02.2]} 39... Qf2+ {[%clk 0:00:05.8]} 40. Kh3 {[%clk 0:00:02.2]}
40... Qf1+ {[%clk 0:00:06.3]} 41. Kh4 {[%clk 0:00:02.2]} 41... Qh1+ {[%clk
0:00:05.8]} 42. Kg5 {[%clk 0:00:02.7]} 42... Qh5+ {[%clk 0:00:05.6]} 43. Kf4
{[%clk 0:00:03.2]} 43... Qf5+ {[%clk 0:00:05.8]} 44. Ke3 {[%clk 0:00:03.8]}
44... Qf3+ {[%clk 0:00:06.1]} 45. Kd2 {[%clk 0:00:04.4]} 45... e3+ {[%clk
0:00:05.2]} 46. Kc1 {[%clk 0:00:04.9]} 46... e2 {[%clk 0:00:05.2]} 47. Nf6+
{[%clk 0:00:04.3]} 47... Kg7 {[%clk 0:00:05.1]} 48. e8=Q {[%clk 0:00:03.5]}
48... Qc3+ {[%clk 0:00:04.5]} 49. Kb1 {[%clk 0:00:03.4]} 49... e1=Q+ {[%clk
0:00:05.4]} 50. Qxe1 {[%clk 0:00:02.7]} 50... Qxe1+ {[%clk 0:00:06]} 51. Kc2
{[%clk 0:00:03.2]} 51... Qe2+ {[%clk 0:00:06.4]} 52. Kb1 {[%clk 0:00:03.2]}
52... Qe1+ {[%clk 0:00:06.2]} 53. Kc2 {[%clk 0:00:03.5]} 53... Qe2+ {[%clk
0:00:05.8]} 54. Kb1 {[%clk 0:00:03.8]} 54... Qc4 {[%clk 0:00:05.1]} 55. Rd7+
{[%clk 0:00:03.5]} 55... Kxf6 {[%clk 0:00:04.5]} 56. Rxb7 {[%clk 0:00:03.8]}
56... Kg5 {[%clk 0:00:04.9]} 57. Rxh7 {[%clk 0:00:03.3]} 57... Qb3+ {[%clk
0:00:05.2]} 58. Ka1 {[%clk 0:00:02.7]} 58... Qxa3+ {[%clk 0:00:06.1]} 59. Kb1
{[%clk 0:00:03.2]} 59... Qb3+ {[%clk 0:00:06.7]} 60. Ka1 {[%clk 0:00:03.6]}
60... a5 {[%clk 0:00:07.2]} 61. Ra7 {[%clk 0:00:02.1]} 61... a4 {[%clk
0:00:07.3]} 62. Ra5 {[%clk 0:00:01.9]} 62... a3 {[%clk 0:00:07.4]} 0-1